[Event "Late-Titled-Tuesday-Blitz-October-03-2023"]
[Site "Chess.com"]
[Date "2023.10.03"]
[Round "4"]
[White "HajiyevKanan"]
[Black "GMG"]
[Result "0-1"]
[WhiteElo "2544"]
[BlackElo "2753"]
[TimeControl "180+1"]
[EndTime "14:38:46 PDT"]
[Termination "GMG won by resignation"]

1. d4 {[%clk 0:03:00.9]} 1... f5 {[%clk 0:02:59.5]} 2. Nf3 {[%clk 0:03:01.8]}
2... Nf6 {[%clk 0:02:59.2]} 3. h3 {[%clk 0:03:02.4]} 3... e6 {[%clk 0:02:54.4]}
4. Bg5 {[%clk 0:03:02.3]} 4... Be7 {[%clk 0:02:52.5]} 5. e3 {[%clk 0:03:02.4]}
5... Ne4 {[%clk 0:02:49.8]} 6. Bxe7 {[%clk 0:03:02.2]} 6... Qxe7 {[%clk
0:02:50.7]} 7. Nbd2 {[%clk 0:03:01.7]} 7... d5 {[%clk 0:02:49.9]} 8. c4 {[%clk
0:02:53.5]} 8... Nd7 {[%clk 0:02:42.5]} 9. Bd3 {[%clk 0:02:48.4]} 9... O-O
{[%clk 0:02:41.3]} 10. O-O {[%clk 0:02:43.3]} 10... c6 {[%clk 0:02:24.8]} 11.
Re1 {[%clk 0:02:34.3]} 11... a5 {[%clk 0:02:23.8]} 12. Qc2 {[%clk 0:02:33.7]}
12... Rf6 {[%clk 0:02:18.4]} 13. Ne5 {[%clk 0:02:31.9]} 13... Nxe5 {[%clk
0:02:16.9]} 14. dxe5 {[%clk 0:02:32.8]} 14... Rg6 {[%clk 0:02:15.7]} 15. f3
{[%clk 0:02:13.7]} 15... Ng3 {[%clk 0:02:11.1]} 16. Nf1 {[%clk 0:02:07.5]} 16...
Qh4 {[%clk 0:02:09.7]} 17. Qf2 {[%clk 0:01:55.6]} 17... Bd7 {[%clk 0:01:56.3]}
18. f4 {[%clk 0:01:50.1]} 18... c5 {[%clk 0:01:29.5]} 19. cxd5 {[%clk
0:01:42.5]} 19... exd5 {[%clk 0:01:29.5]} 20. b3 {[%clk 0:01:40.5]} 20... b6
{[%clk 0:01:28.9]} 21. Kh2 {[%clk 0:01:27.9]} 21... Nxf1+ {[%clk 0:01:26.7]} 22.
Rxf1 {[%clk 0:01:26.7]} 22... Qxf2 {[%clk 0:01:09.4]} 23. Rxf2 {[%clk
0:01:26.9]} 23... a4 {[%clk 0:01:07.2]} 24. b4 {[%clk 0:00:52.9]} 24... c4
{[%clk 0:00:49.2]} 25. Bc2 {[%clk 0:00:53.1]} 25... Rc6 {[%clk 0:00:45.2]} 26.
a3 {[%clk 0:00:48.2]} 26... Be6 {[%clk 0:00:40.4]} 27. Rd1 {[%clk 0:00:45.2]}
27... b5 {[%clk 0:00:39.1]} 28. g4 {[%clk 0:00:42.4]} 28... g6 {[%clk
0:00:38.2]} 29. Kg3 {[%clk 0:00:42.5]} 29... Rd8 {[%clk 0:00:33.6]} 30. Rd4
{[%clk 0:00:41.6]} 30... Rc7 {[%clk 0:00:30.5]} 31. Kf3 {[%clk 0:00:40.9]} 31...
Rf7 {[%clk 0:00:27.3]} 32. Rg2 {[%clk 0:00:40.9]} 32... Kf8 {[%clk 0:00:27.1]}
33. g5 {[%clk 0:00:36.1]} 33... Kg7 {[%clk 0:00:24.7]} 34. h4 {[%clk 0:00:36.6]}
34... h5 {[%clk 0:00:21.5]} 35. Rd1 {[%clk 0:00:35.8]} 35... d4 {[%clk
0:00:19.5]} 36. exd4 {[%clk 0:00:16.3]} 36... Bd5+ {[%clk 0:00:19.3]} 37. Kg3
{[%clk 0:00:17]} 37... Bxg2 {[%clk 0:00:19.6]} 38. Kxg2 {[%clk 0:00:15.9]} 38...
Rfd7 {[%clk 0:00:20.1]} 39. e6 {[%clk 0:00:12.3]} 39... Rxd4 {[%clk 0:00:19]}
40. e7 {[%clk 0:00:06.7]} 40... Rxd1 {[%clk 0:00:17.4]} 41. Bxd1 {[%clk
0:00:06.2]} 41... Rd2+ {[%clk 0:00:15.7]} 42. Kf3 {[%clk 0:00:02.8]} 42... Kf7
{[%clk 0:00:16.1]} 43. Be2 {[%clk 0:00:03.4]} 43... Ra2 {[%clk 0:00:14.8]} 44.
Bxc4+ {[%clk 0:00:02.4]} 44... bxc4 {[%clk 0:00:14.7]} 45. b5 {[%clk 0:00:03.3]}
45... Rxa3+ {[%clk 0:00:15]} 46. Ke2 {[%clk 0:00:03.5]} 46... Rb3 {[%clk
0:00:15.9]} 0-1

[Event "Late-Titled-Tuesday-Blitz-October-03-2023"]
[Site "Chess.com"]
[Date "2023.10.03"]
[Round "4"]
[White "PapaieDudu"]
[Black "filipluczak05"]
[Result "0-1"]
[WhiteElo "2391"]
[BlackElo "2606"]
[TimeControl "180+1"]
[EndTime "14:38:46 PDT"]
[Termination "filipluczak05 won by checkmate"]

1. e4 {[%clk 0:03:00.9]} 1... g6 {[%clk 0:01:53.6]} 2. d4 {[%clk 0:02:58.6]}
2... Bg7 {[%clk 0:01:52.8]} 3. c4 {[%clk 0:02:57.5]} 3... d6 {[%clk 0:01:52.6]}
4. Nc3 {[%clk 0:02:57.2]} 4... e5 {[%clk 0:01:52.9]} 5. Nf3 {[%clk 0:02:55.1]}
5... Nc6 {[%clk 0:01:52.2]} 6. Be3 {[%clk 0:02:54]} 6... Bg4 {[%clk 0:01:51.3]}
7. d5 {[%clk 0:02:49.9]} 7... Nce7 {[%clk 0:01:43.8]} 8. Be2 {[%clk 0:02:38.7]}
8... h5 {[%clk 0:01:42.9]} 9. h3 {[%clk 0:02:30.5]} 9... Bxf3 {[%clk 0:01:42.7]}
10. Bxf3 {[%clk 0:02:31.2]} 10... Bh6 {[%clk 0:01:43.5]} 11. Qb3 {[%clk
0:02:15.4]} 11... Bxe3 {[%clk 0:01:41.5]} 12. fxe3 {[%clk 0:02:14.9]} 12... b6
{[%clk 0:01:41.6]} 13. Qa4+ {[%clk 0:02:09.6]} 13... Kf8 {[%clk 0:01:37.9]} 14.
O-O {[%clk 0:02:07.1]} 14... Kg7 {[%clk 0:01:37.3]} 15. b4 {[%clk 0:01:59.8]}
15... a5 {[%clk 0:01:34.2]} 16. Qb3 {[%clk 0:01:44]} 16... axb4 {[%clk
0:01:31.8]} 17. Qxb4 {[%clk 0:01:44.6]} 17... Nf6 {[%clk 0:01:31.4]} 18. a4
{[%clk 0:01:41.2]} 18... Ra5 {[%clk 0:01:29.9]} 19. Na2 {[%clk 0:01:32.4]} 19...
Nd7 {[%clk 0:01:28.8]} 20. Bd1 {[%clk 0:01:25.6]} 20... Nc5 {[%clk 0:01:28.6]}
21. Bc2 {[%clk 0:01:25.7]} 21... Rf8 {[%clk 0:01:23.9]} 22. Nc3 {[%clk
0:01:23.2]} 22... Qd7 {[%clk 0:01:20.7]} 23. Nb5 {[%clk 0:01:19.9]} 23... Ng8
{[%clk 0:01:16.7]} 24. Qd2 {[%clk 0:00:58.1]} 24... Nh6 {[%clk 0:01:12.1]} 25.
Qf2 {[%clk 0:00:49.3]} 25... Rfa8 {[%clk 0:01:08.1]} 26. Nc3 {[%clk 0:00:40]}
26... Rf8 {[%clk 0:01:04.8]} 27. Qf6+ {[%clk 0:00:39.3]} 27... Kh7 {[%clk
0:01:00.9]} 28. Nb5 {[%clk 0:00:35.1]} 28... Ng8 {[%clk 0:00:56.8]} 29. Qf3
{[%clk 0:00:33.5]} 29... Kg7 {[%clk 0:00:52.5]} 30. Rf2 {[%clk 0:00:27.3]} 30...
Raa8 {[%clk 0:00:48.9]} 31. Rff1 {[%clk 0:00:23.5]} 31... Qe7 {[%clk 0:00:42.3]}
32. Qf2 {[%clk 0:00:21.3]} 32... Nf6 {[%clk 0:00:40.7]} 33. Qf3 {[%clk 0:00:18]}
33... Nh7 {[%clk 0:00:40.5]} 34. Qg3 {[%clk 0:00:14.1]} 34... Na6 {[%clk
0:00:33.7]} 35. a5 {[%clk 0:00:09.8]} 35... Nb4 {[%clk 0:00:33.8]} 36. Bb3
{[%clk 0:00:07.4]} 36... bxa5 {[%clk 0:00:30.2]} 37. Rfd1 {[%clk 0:00:05.7]}
37... Ng5 {[%clk 0:00:28.5]} 38. Qh4 {[%clk 0:00:04.6]} 38... Nf3+ {[%clk
0:00:28.3]} 39. gxf3 {[%clk 0:00:03.6]} 39... Qxh4 {[%clk 0:00:28.8]} 40. Kg2
{[%clk 0:00:04.1]} 40... Qe7 {[%clk 0:00:24.3]} 41. Rd2 {[%clk 0:00:03.8]} 41...
f5 {[%clk 0:00:23.2]} 42. exf5 {[%clk 0:00:03.4]} 42... Rxf5 {[%clk 0:00:23.3]}
43. c5 {[%clk 0:00:01.5]} 43... Raf8 {[%clk 0:00:20.1]} 44. Rf2 {[%clk
0:00:01.6]} 44... Qg5+ {[%clk 0:00:19.7]} 45. Kf1 {[%clk 0:00:01.5]} 45... Rxf3
{[%clk 0:00:20.2]} 46. Re1 {[%clk 0:00:01.1]} 46... Rxf2# {[%clk 0:00:20.1]} 0-1

[Event "Late-Titled-Tuesday-Blitz-October-03-2023"]
[Site "Chess.com"]
[Date "2023.10.03"]
[Round "4"]
[White "GMJustin"]
[Black "GlavkonVVS"]
[Result "0-1"]
[WhiteElo "2195"]
[BlackElo "2588"]
[TimeControl "180+1"]
[EndTime "14:38:46 PDT"]
[Termination "GlavkonVVS won on time"]

1. d4 {[%clk 0:02:39.7]} 1... Nf6 {[%clk 0:02:59]} 2. c4 {[%clk 0:02:39.1]} 2...
e6 {[%clk 0:02:59.1]} 3. Nf3 {[%clk 0:02:37.3]} 3... c5 {[%clk 0:02:58.9]} 4. d5
{[%clk 0:02:36.2]} 4... exd5 {[%clk 0:02:59.6]} 5. cxd5 {[%clk 0:02:35.9]} 5...
Bd6 {[%clk 0:03:00]} 6. Bg5 {[%clk 0:02:27]} 6... Bc7 {[%clk 0:02:57]} 7. d6
{[%clk 0:02:21.9]} 7... Ba5+ {[%clk 0:02:57.1]} 8. Nc3 {[%clk 0:02:19.9]} 8...
Qb6 {[%clk 0:02:55.1]} 9. Bxf6 {[%clk 0:02:10.8]} 9... Qxb2 {[%clk 0:02:54.7]}
10. Bxg7 {[%clk 0:01:34.5]} 10... Rg8 {[%clk 0:02:54.8]} 11. Rb1 {[%clk
0:01:26.7]} 11... Bxc3+ {[%clk 0:02:47.6]} 12. Bxc3 {[%clk 0:01:26.5]} 12...
Qxc3+ {[%clk 0:02:48.5]} 13. Qd2 {[%clk 0:01:26.7]} 13... Qxd2+ {[%clk
0:02:47.9]} 14. Kxd2 {[%clk 0:01:26.4]} 14... Rg6 {[%clk 0:02:48]} 15. e4 {[%clk
0:01:15.4]} 15... Rxd6+ {[%clk 0:02:48]} 16. Ke3 {[%clk 0:01:15.6]} 16... Nc6
{[%clk 0:02:47.9]} 17. Bc4 {[%clk 0:01:13.4]} 17... Rg6 {[%clk 0:02:38.5]} 18.
g3 {[%clk 0:01:07.9]} 18... d6 {[%clk 0:02:38.3]} 19. Rhd1 {[%clk 0:00:53.7]}
19... Nb4 {[%clk 0:02:06.3]} 20. e5 {[%clk 0:00:40]} 20... Bf5 {[%clk
0:01:47.1]} 21. Rb2 {[%clk 0:00:36.2]} 21... d5 {[%clk 0:01:08.3]} 22. Bxd5
{[%clk 0:00:33.7]} 22... Nxd5+ {[%clk 0:01:08.4]} 23. Rxd5 {[%clk 0:00:33.4]}
23... b6 {[%clk 0:01:08.9]} 24. Nh4 {[%clk 0:00:31.8]} 24... Be6 {[%clk
0:01:05.7]} 25. Rd6 {[%clk 0:00:23.3]} 25... Rg8 {[%clk 0:01:02.9]} 26. f4
{[%clk 0:00:22.7]} 26... Rd8 {[%clk 0:00:56.8]} 27. f5 {[%clk 0:00:21.2]} 27...
Rxd6 {[%clk 0:00:55]} 28. exd6 {[%clk 0:00:21.1]} 28... Bd7 {[%clk 0:00:50.2]}
29. Kf4 {[%clk 0:00:19.8]} 29... Kd8 {[%clk 0:00:47.3]} 30. Nf3 {[%clk
0:00:18.7]} 30... f6 {[%clk 0:00:46.5]} 31. g4 {[%clk 0:00:17.8]} 31... Bc6
{[%clk 0:00:45.2]} 32. Re2 {[%clk 0:00:13.6]} 32... Rg7 {[%clk 0:00:36.2]} 33.
Re6 {[%clk 0:00:12.9]} 33... Rf7 {[%clk 0:00:34.8]} 34. h4 {[%clk 0:00:13]}
34... Bd5 {[%clk 0:00:34.3]} 35. Re2 {[%clk 0:00:03.8]} 35... Kd7 {[%clk
0:00:34.3]} 36. g5 {[%clk 0:00:03.8]} 36... Kxd6 {[%clk 0:00:33.7]} 37. g6
{[%clk 0:00:03.7]} 37... Rg7 {[%clk 0:00:30.6]} 38. h5 {[%clk 0:00:03.7]} 38...
h6 {[%clk 0:00:30.8]} 39. Nd2 {[%clk 0:00:02.7]} 39... b5 {[%clk 0:00:29.8]} 40.
Ne4+ {[%clk 0:00:02.8]} 40... Bxe4 {[%clk 0:00:29.5]} 41. Rxe4 {[%clk
0:00:03.1]} 41... c4 {[%clk 0:00:29.2]} 42. Re6+ {[%clk 0:00:03.4]} 42... Kc5
{[%clk 0:00:29.7]} 43. Rxf6 {[%clk 0:00:03.5]} 43... c3 {[%clk 0:00:29.7]} 44.
Rf8 {[%clk 0:00:03.5]} 44... Rc7 {[%clk 0:00:29.1]} 45. Re8 {[%clk 0:00:03.3]}
45... c2 {[%clk 0:00:28.7]} 46. Re1 {[%clk 0:00:03.2]} 46... Kd4 {[%clk
0:00:29.1]} 47. f6 {[%clk 0:00:03.2]} 47... c1=Q+ {[%clk 0:00:27.9]} 48. Rxc1
{[%clk 0:00:02.6]} 48... Rxc1 {[%clk 0:00:28.8]} 49. g7 {[%clk 0:00:02.2]} 49...
Rg1 {[%clk 0:00:28.9]} 50. f7 {[%clk 0:00:01.6]} 50... Rxg7 {[%clk 0:00:25.2]}
51. f8=Q {[%clk 0:00:01.1]} 51... Rd7 {[%clk 0:00:25.8]} 0-1

[Event "Late-Titled-Tuesday-Blitz-October-03-2023"]
[Site "Chess.com"]
[Date "2023.10.03"]
[Round "4"]
[White "rasmussvane"]
[Black "Lennis93"]
[Result "1-0"]
[WhiteElo "2992"]
[BlackElo "2711"]
[TimeControl "180+1"]
[EndTime "14:38:47 PDT"]
[Termination "rasmussvane won by resignation"]

1. Nf3 {[%clk 0:03:00.9]} 1... d5 {[%clk 0:02:59.7]} 2. g3 {[%clk 0:03:01.3]}
2... Nf6 {[%clk 0:02:58.9]} 3. Bg2 {[%clk 0:03:01.6]} 3... h6 {[%clk 0:02:59.5]}
4. O-O {[%clk 0:03:01.8]} 4... Bf5 {[%clk 0:02:59.4]} 5. c4 {[%clk 0:03:01.7]}
5... e6 {[%clk 0:02:59]} 6. Qb3 {[%clk 0:02:57.4]} 6... Nc6 {[%clk 0:02:53.5]}
7. d3 {[%clk 0:02:57.4]} 7... Rb8 {[%clk 0:02:51.6]} 8. cxd5 {[%clk 0:02:56.1]}
8... exd5 {[%clk 0:02:50.7]} 9. Nc3 {[%clk 0:02:56.4]} 9... Be6 {[%clk
0:02:46.4]} 10. Qa4 {[%clk 0:02:52.2]} 10... Qd7 {[%clk 0:02:46.1]} 11. Bf4
{[%clk 0:02:48.8]} 11... Bb4 {[%clk 0:02:38.3]} 12. Nb5 {[%clk 0:02:34.6]} 12...
O-O {[%clk 0:02:06.1]} 13. Bxc7 {[%clk 0:02:21]} 13... a6 {[%clk 0:02:01.4]} 14.
Bxb8 {[%clk 0:02:14.7]} 14... axb5 {[%clk 0:02:01.3]} 15. Qxb5 {[%clk
0:02:15.6]} 15... Rxb8 {[%clk 0:02:01.1]} 16. Rfc1 {[%clk 0:02:07.3]} 16... Bd6
{[%clk 0:02:01.3]} 17. a4 {[%clk 0:01:58.2]} 17... Bh3 {[%clk 0:02:01]} 18. a5
{[%clk 0:01:51.4]} 18... Bxg2 {[%clk 0:01:54.7]} 19. Kxg2 {[%clk 0:01:52.3]}
19... Nb4 {[%clk 0:01:47.3]} 20. Qxd7 {[%clk 0:01:51.2]} 20... Nxd7 {[%clk
0:01:48.2]} 21. Ra4 {[%clk 0:01:31.3]} 21... Na6 {[%clk 0:01:48.3]} 22. d4
{[%clk 0:01:28.9]} 22... Nf6 {[%clk 0:01:42.6]} 23. Ne1 {[%clk 0:01:28.8]} 23...
Nb4 {[%clk 0:01:24.4]} 24. Rc3 {[%clk 0:01:21.3]} 24... Ne4 {[%clk 0:01:19.4]}
25. Rb3 {[%clk 0:01:20.6]} 25... Nc6 {[%clk 0:01:19.1]} 26. Rb5 {[%clk
0:01:17.7]} 26... Nf6 {[%clk 0:00:43.4]} 27. Nd3 {[%clk 0:01:15.9]} 27... Kf8
{[%clk 0:00:43.2]} 28. Nc5 {[%clk 0:00:54]} 28... Nd8 {[%clk 0:00:24.9]} 29. a6
{[%clk 0:00:40.9]} 29... bxa6 {[%clk 0:00:23.5]} 30. Rxb8 {[%clk 0:00:41.8]}
30... Bxb8 {[%clk 0:00:23.6]} 31. Rxa6 {[%clk 0:00:42.7]} 31... Ke7 {[%clk
0:00:16.6]} 32. b4 {[%clk 0:00:42.9]} 32... Ne6 {[%clk 0:00:12.2]} 33. e3 {[%clk
0:00:38.6]} 33... Nxc5 {[%clk 0:00:11.4]} 34. dxc5 {[%clk 0:00:38.2]} 34... Ne4
{[%clk 0:00:11]} 35. f3 {[%clk 0:00:34]} 35... Nc3 {[%clk 0:00:10.6]} 36. b5
{[%clk 0:00:33.9]} 36... Be5 {[%clk 0:00:07.3]} 37. Ra7+ {[%clk 0:00:28]} 37...
Ke8 {[%clk 0:00:06.6]} 38. b6 {[%clk 0:00:27.7]} 38... d4 {[%clk 0:00:07.1]} 39.
exd4 {[%clk 0:00:26.6]} 39... Bxd4 {[%clk 0:00:07.7]} 40. b7 {[%clk 0:00:25]}
40... Be5 {[%clk 0:00:06.6]} 41. c6 {[%clk 0:00:20.3]} 41... Nd5 {[%clk
0:00:05.6]} 42. Ra5 {[%clk 0:00:16.3]} 42... Ne3+ {[%clk 0:00:06]} 43. Kf2
{[%clk 0:00:16.4]} 43... Bc7 {[%clk 0:00:06.3]} 44. Ra8+ {[%clk 0:00:14.8]}
44... Bd8 {[%clk 0:00:06.2]} 45. Kxe3 {[%clk 0:00:15.7]} 1-0

[Event "Late-Titled-Tuesday-Blitz-October-03-2023"]
[Site "Chess.com"]
[Date "2023.10.03"]
[Round "4"]
[White "Zhigalko_Sergei"]
[Black "Njal28"]
[Result "1-0"]
[WhiteElo "2946"]
[BlackElo "3089"]
[TimeControl "180+1"]
[EndTime "14:38:49 PDT"]
[Termination "Zhigalko_Sergei won on time"]

1. e4 {[%clk 0:03:00.9]} 1... e5 {[%clk 0:02:59.5]} 2. Nf3 {[%clk 0:03:01.1]}
2... Nc6 {[%clk 0:03:00]} 3. Bc4 {[%clk 0:03:01.2]} 3... Bc5 {[%clk 0:02:59.1]}
4. O-O {[%clk 0:03:00.8]} 4... d6 {[%clk 0:02:58.5]} 5. d3 {[%clk 0:03:01.2]}
5... Nf6 {[%clk 0:02:55.6]} 6. Nbd2 {[%clk 0:03:01.7]} 6... a6 {[%clk
0:02:53.6]} 7. c3 {[%clk 0:03:01.3]} 7... Ba7 {[%clk 0:02:54]} 8. Bb3 {[%clk
0:03:01.5]} 8... Qe7 {[%clk 0:02:53]} 9. Re1 {[%clk 0:02:59.3]} 9... g5 {[%clk
0:02:48]} 10. Nc4 {[%clk 0:02:47.7]} 10... g4 {[%clk 0:02:46]} 11. Nfd2 {[%clk
0:02:41.3]} 11... h5 {[%clk 0:02:42.9]} 12. Nf1 {[%clk 0:02:41.4]} 12... Rg8
{[%clk 0:02:35.6]} 13. Be3 {[%clk 0:02:37.9]} 13... h4 {[%clk 0:02:28.8]} 14.
Bxa7 {[%clk 0:02:37.2]} 14... Rxa7 {[%clk 0:02:29.1]} 15. Nce3 {[%clk
0:02:34.8]} 15... Rg5 {[%clk 0:02:15.3]} 16. Qd2 {[%clk 0:02:14.4]} 16... Rh5
{[%clk 0:02:14.1]} 17. Rad1 {[%clk 0:01:59.2]} 17... Ra8 {[%clk 0:02:13]} 18.
Nd5 {[%clk 0:01:47.1]} 18... Nxd5 {[%clk 0:02:04.1]} 19. Bxd5 {[%clk 0:01:48]}
19... Bd7 {[%clk 0:01:56.6]} 20. d4 {[%clk 0:01:45]} 20... Kf8 {[%clk
0:01:50.6]} 21. Ne3 {[%clk 0:01:12]} 21... Re8 {[%clk 0:01:49.9]} 22. a3 {[%clk
0:01:03.4]} 22... Qf6 {[%clk 0:01:46.1]} 23. b4 {[%clk 0:00:50.8]} 23... Kg7
{[%clk 0:01:12.3]} 24. a4 {[%clk 0:00:39.4]} 24... g3 {[%clk 0:01:08.9]} 25.
fxg3 {[%clk 0:00:36.7]} 25... hxg3 {[%clk 0:00:41.1]} 26. Rf1 {[%clk 0:00:36.6]}
26... Qh6 {[%clk 0:00:41.7]} 27. Rxf7+ {[%clk 0:00:33.2]} 27... Kh8 {[%clk
0:00:42.2]} 28. hxg3 {[%clk 0:00:21.2]} 28... exd4 {[%clk 0:00:19.9]} 29. cxd4
{[%clk 0:00:20.3]} 29... Be6 {[%clk 0:00:20.5]} 30. Bxe6 {[%clk 0:00:16.1]}
30... Rxe6 {[%clk 0:00:21.1]} 31. Nf5 {[%clk 0:00:13.6]} 31... Rh1+ {[%clk
0:00:10.5]} 32. Kf2 {[%clk 0:00:12.2]} 32... Qxd2+ {[%clk 0:00:11.4]} 33. Rxd2
{[%clk 0:00:12.4]} 33... Rxe4 {[%clk 0:00:11.8]} 34. b5 {[%clk 0:00:11.8]} 34...
axb5 {[%clk 0:00:11.3]} 35. axb5 {[%clk 0:00:12.7]} 35... Nb4 {[%clk 0:00:07]}
36. Rxc7 {[%clk 0:00:12.5]} 36... Ree1 {[%clk 0:00:03]} 37. g4 {[%clk
0:00:11.2]} 37... Rhf1+ {[%clk 0:00:02.9]} 38. Kg3 {[%clk 0:00:11.4]} 38... Nd5
{[%clk 0:00:03.7]} 39. Rxb7 {[%clk 0:00:09.9]} 39... Nf6 {[%clk 0:00:04.3]} 40.
Nxd6 {[%clk 0:00:07.5]} 40... Re6 {[%clk 0:00:04.1]} 41. Nf7+ {[%clk 0:00:05.3]}
41... Kg8 {[%clk 0:00:04]} 42. Ng5 {[%clk 0:00:05.9]} 42... Rd6 {[%clk
0:00:03.2]} 43. Rc2 {[%clk 0:00:05.6]} 43... Rd8 {[%clk 0:00:01.3]} 44. Rcc7
{[%clk 0:00:06.2]} 1-0

[Event "Late-Titled-Tuesday-Blitz-October-03-2023"]
[Site "Chess.com"]
[Date "2023.10.03"]
[Round "4"]
[White "AsaHoffmann"]
[Black "Deeper44"]
[Result "1-0"]
[WhiteElo "2384"]
[BlackElo "2563"]
[TimeControl "180+1"]
[EndTime "14:38:50 PDT"]
[Termination "AsaHoffmann won by resignation"]

1. d4 {[%clk 0:02:59.6]} 1... Nf6 {[%clk 0:03:00]} 2. Bg5 {[%clk 0:02:56.1]}
2... e6 {[%clk 0:02:58.9]} 3. Nd2 {[%clk 0:02:55.2]} 3... Be7 {[%clk 0:02:59.4]}
4. e3 {[%clk 0:02:54.8]} 4... d5 {[%clk 0:03:00.1]} 5. Bd3 {[%clk 0:02:54.5]}
5... c5 {[%clk 0:03:00.3]} 6. c3 {[%clk 0:02:54.3]} 6... Nc6 {[%clk 0:03:00.2]}
7. f4 {[%clk 0:02:54.3]} 7... Nd7 {[%clk 0:02:58.3]} 8. Ngf3 {[%clk 0:02:53.5]}
8... h6 {[%clk 0:02:58.2]} 9. Bxe7 {[%clk 0:02:52.6]} 9... Qxe7 {[%clk
0:02:59.1]} 10. O-O {[%clk 0:02:52.1]} 10... O-O {[%clk 0:02:57.3]} 11. Ne5
{[%clk 0:02:51.6]} 11... cxd4 {[%clk 0:02:47.5]} 12. exd4 {[%clk 0:02:51]} 12...
Ndxe5 {[%clk 0:02:42.4]} 13. fxe5 {[%clk 0:02:50.7]} 13... f6 {[%clk 0:02:41.4]}
14. exf6 {[%clk 0:02:37.3]} 14... Rxf6 {[%clk 0:02:42.3]} 15. Qh5 {[%clk
0:02:32.3]} 15... Bd7 {[%clk 0:02:37.4]} 16. Rxf6 {[%clk 0:02:31.4]} 16... Qxf6
{[%clk 0:02:37.1]} 17. Rf1 {[%clk 0:02:31]} 17... Be8 {[%clk 0:02:38]} 18. Rxf6
{[%clk 0:02:22.8]} 18... Bxh5 {[%clk 0:02:37.5]} 19. Rxe6 {[%clk 0:02:22.7]}
19... Kf7 {[%clk 0:02:10.7]} 20. Re3 {[%clk 0:02:20.9]} 20... g5 {[%clk
0:02:07]} 21. h3 {[%clk 0:02:18.2]} 21... Kf6 {[%clk 0:01:55.9]} 22. g4 {[%clk
0:02:14.1]} 22... Bf7 {[%clk 0:01:54.9]} 23. Nf3 {[%clk 0:02:12.3]} 23... Re8
{[%clk 0:01:46.7]} 24. Kf2 {[%clk 0:02:11.5]} 24... Rxe3 {[%clk 0:01:43]} 25.
Kxe3 {[%clk 0:02:11.3]} 25... a6 {[%clk 0:01:42.1]} 26. a4 {[%clk 0:02:09.3]}
26... Be6 {[%clk 0:01:40.9]} 27. b4 {[%clk 0:02:08.2]} 27... Bd7 {[%clk
0:01:38.8]} 28. b5 {[%clk 0:02:07.3]} 28... Na5 {[%clk 0:01:34.5]} 29. bxa6
{[%clk 0:02:04.4]} 29... bxa6 {[%clk 0:01:34.4]} 30. Bxa6 {[%clk 0:02:02.4]}
30... Bxa4 {[%clk 0:01:34.7]} 31. Ne5 {[%clk 0:01:59.2]} 31... Bc2 {[%clk
0:01:21]} 32. Bd3 {[%clk 0:01:53.9]} 32... Ba4 {[%clk 0:01:17.5]} 33. c4 {[%clk
0:01:43.8]} 33... dxc4 {[%clk 0:01:14.6]} 34. Bxc4 {[%clk 0:01:43]} 34... Nxc4+
{[%clk 0:01:10.1]} 35. Nxc4 {[%clk 0:01:41.6]} 35... Bc6 {[%clk 0:01:10.8]} 36.
Kf2 {[%clk 0:01:34.4]} 36... Ke6 {[%clk 0:01:09.3]} 37. Ne3 {[%clk 0:01:34.2]}
37... Be4 {[%clk 0:01:07.3]} 38. Kg3 {[%clk 0:01:33.8]} 38... Bd3 {[%clk
0:01:01.8]} 39. h4 {[%clk 0:01:32.6]} 39... Be4 {[%clk 0:00:57]} 40. hxg5 {[%clk
0:01:30.6]} 40... hxg5 {[%clk 0:00:57.9]} 41. Kf2 {[%clk 0:01:27.8]} 41... Bd3
{[%clk 0:00:55.9]} 42. Kf3 {[%clk 0:01:27.2]} 42... Bb1 {[%clk 0:00:50.1]} 43.
Ke2 {[%clk 0:01:18.6]} 43... Be4 {[%clk 0:00:49.3]} 44. Kd2 {[%clk 0:01:18.7]}
44... Bb1 {[%clk 0:00:42.4]} 45. Kc3 {[%clk 0:01:18.3]} 45... Be4 {[%clk
0:00:38.6]} 46. Kb4 {[%clk 0:01:16.6]} 46... Kd6 {[%clk 0:00:37.3]} 47. Kc4
{[%clk 0:01:16.3]} 47... Bf3 {[%clk 0:00:37]} 48. d5 {[%clk 0:01:13.7]} 48...
Be2+ {[%clk 0:00:24.6]} 49. Kd4 {[%clk 0:01:13.2]} 49... Bf3 {[%clk 0:00:24.2]}
50. Nc4+ {[%clk 0:01:11]} 50... Ke7 {[%clk 0:00:23.4]} 51. Ne5 {[%clk
0:01:10.8]} 51... Be2 {[%clk 0:00:21.9]} 52. Kc5 {[%clk 0:01:10.7]} 52... Kf6
{[%clk 0:00:22]} 53. d6 {[%clk 0:01:06.2]} 53... Ke6 {[%clk 0:00:21.6]} 54. d7
{[%clk 0:01:05.6]} 54... Ke7 {[%clk 0:00:21.4]} 55. Kc6 {[%clk 0:01:04.9]} 55...
Bd1 {[%clk 0:00:03.7]} 56. Kc7 {[%clk 0:01:01.7]} 56... Ke6 {[%clk 0:00:02.8]}
57. d8=Q {[%clk 0:00:59.5]} 57... Kxe5 {[%clk 0:00:03.7]} 58. Qxd1 {[%clk
0:00:58.3]} 58... Ke4 {[%clk 0:00:04.6]} 59. Qf1 {[%clk 0:00:57.5]} 1-0